bitfinex/quotes_ETHUSD_20220218
["timestamp","ask_amount","ask_price","bid_price","bid_amount"]
[1645193158448,0.00370762,2905.9,2905.5,22.0606]
[1645193158847,0.00157313,2905.9,2905.5,22.0606]
[1645193159049,0.00157313,2905.9,2905.6,0.496]
[1645193159248,0.00314629,2905.9,2905.6,0.496]
[1645193160505,0.00480103,2905.9,2905.6,0.496]
[1645193160698,0.0032279,2905.9,2905.7,2.32539583]
[1645193160899,0.0032279,2905.9,2905.7,1.46484583]
[1645193161301,0.0032279,2905.9,2905.8,1.46484421]
[1645193161499,0.00488261,2905.9,2905.6,0.496]
[1645193161699,4.15350484,2905.7,2905.5,0.00172697]
[1645193162099,0.01861777,2905.8,2905.5,0.00172697]
[1645193162500,1.74015777,2905.8,2905.5,0.00172697]
[1645193163005,0.87938777,2905.8,2905.6,0.00172694]
[1645193163254,4.17212261,2905.8,2905.6,0.00172694]
[1645193163455,0.01861777,2905.8,2905.6,0.00172694]
[1645193164055,4.17212261,2905.8,2905.6,0.0039779]
[1645193167293,4.15350484,2905.8,2905.6,0.0039779]
[1645193167692,4.15350484,2905.8,2905.6,0.00225096]
[1645193168298,4.15350484,2905.8,2905.5,0.00225097]
[1645193168495,0.86294069,2905.9,2905.5,0.00225097]
[1645193168695,4.15350484,2905.8,2905.6,0.00225095]
[1645193169900,0.00675209,2905.9,2905.6,0.0045019]
[1645193170751,4.11025693,2906.0,2905.6,0.0045019]
[1645193171150,0.00223095,2905.9,2905.6,0.0067331]
[1645193173351,0.00223095,2905.9,2905.6,0.0022312]
[1645193173556,4.11025693,2905.8,2905.6,0.00428996]
[1645193173752,4.11025693,2905.7,2905.6,0.00428996]
[1645193175001,4.11025693,2905.7,2905.6,0.00603405]
[1645193175401,0.86074,2905.8,2905.6,0.00603405]
[1645193176003,4.11025693,2905.7,2905.6,0.00772616]
[1645193176209,0.86074,2905.8,2905.6,0.00772616]
[1645193176407,4.11025693,2905.7,2905.6,0.00772616]
[1645193177706,4.41025693,2905.7,2905.6,0.00772616]
[1645193178345,4.41025693,2905.7,2905.6,0.00169211]
[1645193179549,4.41025693,2905.7,2905.6,0.00339088]
[1645193179952,0.3,2905.7,2905.6,0.00339088]
[1645193180152,0.60169193,2905.9,2905.6,0.00339088]
[1645193180352,4.11025693,2905.8,2905.6,0.00339088]
[1645193180752,4.06025693,2905.8,2905.6,0.00508965]
[1645193182997,4.06025693,2905.8,2905.7,1.46490148]
[1645193183200,4.01025693,2905.8,2905.7,1.46490148]
[1645193183397,0.86565703,2906.0,2905.7,1.46490148]
[1645193183398,0.863998,2906.0,2905.7,1.46490148]
[1645193183698,0.3,2905.8,2905.6,0.00169877]
[1645193184704,4.31025693,2905.8,2905.6,0.00169877]
[1645193185504,6.03175693,2905.8,2905.6,0.00169877]
[1645193185956,6.03175693,2905.8,2905.6,1.46659816]
[1645193186860,4.01025693,2905.9,2905.6,1.46659816]
[1645193187058,0.86798602,2906.0,2905.6,1.46659816]
[1645193187059,0.00730602,2906.0,2905.6,1.46659816]
[1645193187958,4.01025693,2905.9,2905.6,1.46659816]
[1645193188162,0.86069,2905.8,2905.6,1.46659816]
[1645193188360,0.86069,2905.8,2905.6,1.46489939]
[1645193189263,1.72141,2905.8,2905.6,1.46711837]
[1645193189499,5.73166693,2905.8,2905.6,1.46711837]
[1645193189899,1.72141,2905.8,2905.6,1.46711837]
[1645193190101,0.86069,2905.8,2905.6,1.46711837]
[1645193190902,0.00616265,2906.0,2905.6,0.00221898]
[1645193191103,0.00616265,2906.0,2905.6,1.46701171]
[1645193191304,0.00416864,2906.0,2905.7,1.46479273]
[1645193191603,4.01646479,2906.0,2905.8,1.46479273]
[1645193191805,4.01646479,2906.0,2905.9,1.46479273]
[1645193192002,4.01646479,2906.0,2905.7,1.46479273]
[1645193192204,0.01593555,2905.7,2905.6,0.86483854]
[1645193192405,0.015135,2905.8,2905.7,0.02248232]
[1645193192607,0.015135,2905.8,2905.7,1.48724017]
[1645193192909,0.015135,2905.8,2905.7,22.18324017]
[1645193193171,0.015135,2905.8,2905.7,4.84097986]
[1645193193371,0.015135,2905.8,2905.7,2.98324017]
[1645193194175,0.015135,2905.8,2905.7,23.18324017]
[1645193194381,0.015135,2905.8,2905.7,25.04097986]
[1645193196479,0.015135,2905.8,2905.7,25.04294058]
[1645193197108,0.015135,2905.8,2905.7,1.98520089]
[1645193197314,4.01025693,2905.9,2905.7,1.48920089]
[1645193197514,4.01025693,2905.9,2905.8,1.46475785]
[1645193197912,7.81025693,2905.9,2905.8,1.46475785]
[1645193198112,4.01025693,2905.9,2905.7,0.02444304]
[1645193198315,0.00196047,2906.0,2905.7,0.02444304]
[1645193198513,0.00196047,2906.0,2905.8,1.46486369]
[1645193198912,0.0038435,2906.0,2905.8,1.46486369]
[1645193199616,4.01025693,2905.9,2905.8,1.46486369]
[1645193200118,0.0038435,2906.0,2905.8,1.46486369]
[1645193200515,4.01025693,2905.9,2905.8,1.46486369]
[1645193205301,4.01566798,2906.0,2905.8,1.46486369]
[1645193205501,0.00541105,2906.0,2905.8,1.46486369]
[1645193207312,4.01025693,2905.9,2905.8,1.46486369]
[1645193207707,0.00541105,2906.0,2905.8,1.46486369]
[1645193208348,6.59208073,2906.1,2905.8,1.46486369]
[1645193208552,5.73140693,2906.1,2905.8,1.46486369]
[1645193208750,4.87078693,2906.1,2905.8,1.46486369]
[1645193208952,0.00209784,2906.0,2905.8,1.46486369]
[1645193209757,0.00209784,2906.0,2905.8,1.46399369]
[1645193210154,4.81946477,2906.1,2905.8,1.46399369]
[1645193211895,4.74650477,2906.1,2905.8,1.46399369]
[1645193212500,0.73624784,2906.1,2905.8,1.46399369]
[1645193212699,4.01025693,2906.0,2905.8,1.46399369]
[1645193212898,3.76895693,2905.9,2905.8,1.46399369]
[1645193213299,2.20662391,2905.9,2905.8,1.46399369]
[1645193213699,2.20894811,2906.0,2905.8,1.46399369]
[1645193214504,2.21125277,2906.0,2905.8,1.46399369]
[1645193215748,2.11987277,2906.0,2905.8,1.46399369]
[1645193216250,0.00230466,2906.0,2905.8,1.46399369]
[1645193216650,2.11756811,2905.9,2905.8,1.46399369]
[1645193216854,0.39515568,2906.1,2905.8,1.46399369]
[1645193217053,0.05077568,2906.1,2905.8,1.46399369]
[1645193217254,3.54506379,2906.2,2905.8,1.46399369]
[1645193217560,2.11756811,2906.0,2905.8,1.46399369]
[1645193218354,0.86064,2906.1,2905.8,1.46399369]
[1645193218754,2.97820811,2906.1,2905.8,1.46399369]
[1645193219804,0.86064,2906.1,2905.8,1.46399369]
[1645193220604,0.86270788,2906.1,2905.8,1.46399369]
[1645193221006,0.86270788,2906.1,2905.8,21.66399369]
[1645193221211,0.86270788,2906.1,2905.7,1.02611411]
[1645193221405,0.86270788,2906.1,2905.7,0.02611411]
[1645193222506,0.86270788,2906.1,2905.7,21.08667411]
[1645193222905,0.81270788,2906.1,2905.7,22.05048809]
[1645193223145,0.81270788,2906.1,2905.7,1.85048809]
[1645193223347,0.81270788,2906.1,2905.7,0.88516845]
[1645193223951,0.81270788,2906.1,2905.7,0.02460845]
[1645193225552,2.93027599,2906.1,2905.7,0.02460845]
[1645193225952,2.93027599,2906.1,2905.7,2.85984558]
[1645193226153,0.81270788,2906.1,2905.7,3.72053296]
[1645193226353,2.93027599,2906.1,2905.7,3.72053296]
[1645193226551,2.93027599,2906.1,2905.7,1.88514845]
[1645193226752,2.93027599,2906.1,2905.7,0.02460845]
[1645193227601,2.93027599,2906.1,2905.7,0.88516845]
[1645193228201,2.92820811,2906.1,2905.7,0.88304232]
[1645193228802,0.81064,2906.1,2905.7,1.88304232]
[1645193229005,0.81064,2906.1,2905.7,22.08304232]
[1645193229906,0.81064,2906.1,2905.8,1.4646285]
[1645193231077,2.92820811,2906.1,2905.8,1.4646285]
[1645193231479,2.92820811,2906.1,2905.7,4.18325588]
[1645193231679,2.92820811,2906.1,2905.9,0.8605]
[1645193232079,2.92820811,2906.1,2906.0,1.4646285]
[1645193232778,2.11756811,2906.1,2906.0,1.4646285]
[1645193233183,2.11756811,2906.1,2905.8,1.4646285]
[1645193233379,2.11756811,2906.1,2905.9,1.4646285]
[1645193233581,3.54506379,2906.2,2905.8,1.4646285]
[1645193233779,3.54506379,2906.2,2905.9,1.4646285]
[1645193233980,3.54506379,2906.2,2906.0,1.4646285]
[1645193234179,3.54506379,2906.2,2906.1,1.4646285]
[1645193234407,3.54506379,2906.2,2906.0,0.86047]
[1645193234608,3.54506379,2906.2,2906.1,1.4646285]
[1645193235208,3.54755374,2906.2,2906.1,1.4646285]
[1645193235409,3.54755374,2906.2,2905.8,1.46711882]
[1645193235714,3.54755374,2906.2,2905.9,1.4646285]
[1645193235908,3.54755374,2906.2,2905.8,0.00249032]
[1645193235909,3.54755374,2906.2,2906.0,21.6646285]
[1645193236110,3.54755374,2906.2,2906.1,1.4646285]
[1645193236312,3.54755374,2906.2,2905.8,1.46711882]
[1645193236509,3.54755374,2906.2,2905.8,1.46960914]
[1645193236510,3.55004369,2906.2,2905.8,1.46960914]
[1645193236713,3.55004369,2906.2,2905.9,21.6646285]
[1645193236910,3.55004369,2906.2,2906.0,1.4646285]
[1645193237513,3.55253363,2906.2,2906.0,1.4646285]
[1645193237713,3.55253363,2906.2,2906.1,1.4646285]
[1645193238159,3.55253363,2906.2,2906.0,1.4646285]
[1645193238364,3.55004368,2906.2,2906.0,1.4646285]
[1645193238860,3.55253362,2906.2,2906.0,1.4646285]
[1645193240665,3.55253362,2906.2,2906.1,1.4646285]
[1645193241066,3.55253362,2906.2,2906.0,0.86047]
[1645193241267,3.55253362,2906.2,2906.1,1.4646285]
[1645193243306,3.54506379,2906.2,2906.1,1.4646285]
[1645193243703,3.5473256,2906.2,2906.1,1.46312888]
[1645193244003,3.5473256,2906.2,2905.8,22.41907219]
[1645193244805,3.54958741,2906.2,2905.8,22.42133438]
[1645193245206,3.54958741,2906.2,2906.0,20.2]
[1645193245404,3.54958741,2906.2,2906.0,21.06033]
[1645193246058,3.55184922,2906.2,2906.0,21.06033]
[1645193247454,3.55184922,2906.2,2906.0,21.0483025]
[1645193248255,3.5473256,2906.2,2906.0,21.0483025]
[1645193248456,0.00452364,2906.2,2906.0,21.0483025]
[1645193248857,0.00467581,2906.7,2906.2,20.1879725]
[1645193249061,3.25189045,2906.9,2906.4,20.1879725]
[1645193249062,0.00467581,2906.8,2906.4,20.1879725]
[1645193249256,0.00467581,2906.8,2906.5,20.6839725]
[1645193249518,0.00467581,2906.8,2906.1,0.04754769]
[1645193249519,0.00467581,2906.8,2906.6,20.6839725]
[1645193249716,0.88731565,2906.9,2906.6,20.6839725]
[1645193251425,1.98296738,2906.7,2906.5,0.86019]
[1645193251623,1.98296738,2906.7,2906.4,1.72038]
[1645193251624,0.86037,2906.6,2906.4,1.72038]
[1645193252819,0.86037,2906.6,2906.5,20.2]
[1645193253161,0.00467581,2906.8,2906.5,20.696]
[1645193253359,0.00467581,2907.0,2906.5,20.696]
[1645193253558,0.00467581,2907.1,2906.7,20.2]
[1645193253765,0.00467581,2907.1,2906.8,0.496]
[1645193253957,1.98296738,2907.2,2906.8,20.696]
[1645193253958,1.98764319,2907.2,2906.8,20.696]
[1645193254159,2.84776319,2907.2,2906.8,20.696]
[1645193254564,0.01067899,2906.9,2906.8,21.55616]
[1645193255565,0.01067899,2906.9,2906.8,1.35616]
[1645193255767,0.02135798,2906.9,2906.8,21.55616]
[1645193256068,0.02135798,2906.9,2906.8,1.35616]
[1645193256911,0.0312697,2906.9,2906.8,1.35616]
[1645193257514,0.0312697,2906.9,2906.8,21.55616]
[1645193258315,0.02059071,2906.9,2906.8,21.55616]
[1645193258918,0.02059071,2906.9,2906.8,22.55616]
[1645193259313,0.02059071,2906.9,2906.8,4.69879882]
[1645193259518,0.02059071,2906.9,2906.8,3.69879882]
[1645193259719,0.02894929,2906.9,2906.8,23.89879882]
[1645193260765,0.02894929,2906.9,2906.8,21.55616]
[1645193261766,1.96659248,2907.2,2906.8,21.55616]
[1645193262168,8.3068177,2908.0,2906.8,21.55616]
[1645193262368,1.2393,2907.9,2906.8,21.55616]
[1645193262568,1.96659248,2907.3,2906.8,22.06966142]
[1645193263272,0.86006,2907.2,2906.8,22.06966142]
[1645193263672,0.86006,2907.2,2907.0,20.2]
[1645193263872,0.86006,2907.2,2907.0,21.06007]
[1645193265114,0.86006,2907.2,2907.0,0.86007]
[1645193266619,0.86006,2907.2,2907.1,20.2]
[1645193267019,0.86097071,2907.2,2907.0,0.86007]
[1645193267218,0.86097071,2907.2,2907.0,21.06007]
[1645193267420,0.00091071,2907.2,2907.0,21.06007]
[1645193267620,0.00091071,2907.2,2907.1,22.16005465]
[1645193268018,1.96659248,2907.3,2907.1,22.16005465]
[1645193268259,0.00242726,2907.2,2907.1,20.696]
[1645193269261,0.36160556,2907.4,2907.1,20.696]
[1645193269462,0.00242721,2907.3,2907.1,20.696]
[1645193270962,1.96901969,2907.3,2907.1,20.696]
[1645193271162,1.96659248,2907.3,2907.1,20.696]
[1645193271562,0.35868263,2907.4,2907.1,20.696]
[1645193272204,0.00238938,2907.3,2907.1,20.696]
[1645193273108,0.00238938,2907.3,2907.2,20.2]
[1645193273109,2.82903186,2907.3,2907.2,20.2]
[1645193273311,2.82664248,2907.3,2907.2,20.2]
[1645193274312,2.82887389,2907.3,2907.2,20.2]
[1645193274511,0.86228141,2907.3,2907.2,20.2]
[1645193274714,2.82887389,2907.3,2907.2,20.2]
[1645193275311,2.82887389,2907.3,2907.1,0.496]
[1645193275513,2.82887389,2907.3,2907.1,20.696]
[1645193276156,1.96882389,2907.3,2907.1,20.696]
[1645193276962,1.96659248,2907.3,2907.1,20.696]
[1645193277154,0.36317606,2907.4,2907.1,20.696]
[1645193277356,1.96659248,2907.3,2907.1,20.696]
[1645193278356,2.82664248,2907.3,2907.1,20.696]
[1645193278555,0.86005,2907.3,2907.1,20.696]
[1645193278758,2.82664248,2907.3,2907.1,20.696]
[1645193279157,2.82890455,2907.3,2907.1,20.696]
[1645193280207,0.86231207,2907.3,2907.1,20.696]
[1645193280406,2.82890455,2907.3,2907.1,20.696]
[1645193281008,2.82890455,2907.3,2907.1,0.496]
[1645193281408,2.83110154,2907.3,2907.1,20.696]
[1645193282010,0.86450906,2907.3,2907.1,20.696]
[1645193282312,1.96659248,2907.2,2907.1,20.696]
[1645193282911,1.96659248,2907.2,2907.1,20.69446921]
[1645193284254,0.00219699,2907.3,2907.1,20.69446921]
[1645193284459,1.96659248,2907.2,2907.1,20.69446921]
[1645193284868,0.00219699,2907.3,2907.1,22.15847739]
[1645193285160,1.96659248,2907.2,2907.1,20.69446921]
[1645193285358,1.96659248,2907.2,2907.1,22.15846171]
[1645193285759,1.96659248,2907.2,2907.1,23.01852171]
[1645193285963,0.00415479,2907.3,2907.1,23.01852171]
[1645193286160,0.00415479,2907.3,2907.1,21.55452921]
[1645193286361,1.96659248,2907.2,2907.1,21.55452921]
[1645193286560,1.96659248,2907.2,2907.1,22.15837737]
[1645193286761,1.96659248,2907.2,2907.1,22.45837737]
[1645193287212,1.96659248,2907.2,2907.1,22.53925544]
[1645193287722,1.96659248,2907.2,2907.1,22.23925544]
[1645193288318,0.00611259,2907.3,2907.1,22.23925544]
[1645193288319,0.0019578,2907.3,2907.1,22.23925544]
[1645193288518,0.0019578,2907.3,2907.2,21.66390816]
[1645193288718,0.0019578,2907.3,2907.2,22.15990816]
[1645193288917,0.00367547,2907.3,2907.2,22.15990816]
[1645193289519,1.97026795,2907.3,2907.2,22.15990816]
[1645193289719,0.00367547,2907.3,2907.2,22.15990816]
[1645193289920,0.00539316,2907.3,2907.2,22.15990816]
[1645193291763,0.1719,2908.2,2907.6,20.2]
[1645193291970,0.3447977,2908.4,2907.8,0.85993]
[1645193291971,0.00465244,2908.1,2907.8,0.85993]
[1645193292174,0.00465244,2908.2,2907.9,22.33144677]
[1645193292373,0.01800214,2908.3,2908.1,20.2]
[1645193292676,0.0133497,2908.3,2908.2,22.15954677]
[1645193292869,0.0133497,2908.3,2908.2,23.15954677]
[1645193293073,0.0133497,2908.3,2908.2,23.45954677]
[1645193293669,0.0133497,2908.3,2908.2,24.31919677]
[1645193293872,0.0133497,2908.3,2908.2,22.85565]
[1645193294069,0.0133497,2908.3,2908.2,24.31901655]
[1645193295317,0.0133497,2908.3,2908.2,24.61901655]
[1645193295512,0.00465244,2908.8,2908.4,20.2]
[1645193295718,0.01893486,2909.0,2908.8,21.05961]
[1645193295719,0.01744264,2909.0,2908.8,21.05961]
[1645193295920,0.2159697,2909.6,2909.1,20.2]
[1645193295921,0.0440697,2909.6,2909.1,20.2]
[1645193296119,0.0440697,2909.6,2909.3,20.2]
[1645193296316,0.0440697,2909.6,2909.4,0.496]
[1645193296317,1.47085979,2909.5,2909.4,0.496]
[1645193298160,1.42085979,2909.5,2909.4,0.496]
[1645193298665,1.42085979,2909.5,2908.9,0.496]
[1645193298862,1.42085979,2909.0,2908.9,0.496]
[1645193299262,1.42085979,2909.0,2908.8,0.01124919]
[1645193299667,0.85873096,2908.9,2908.8,0.01124919]
[1645193302619,1.03053096,2908.9,2908.8,0.01124919]
[1645193302820,4.53053096,2908.9,2908.8,0.01124919]
[1645193303024,1.03053096,2908.9,2908.8,0.01124919]
[1645193303421,0.85873096,2908.9,2908.8,0.01124919]
[1645193304827,4.35873096,2908.9,2908.8,0.01124919]
[1645193305857,4.65873096,2908.9,2908.8,0.01124919]
[1645193306058,4.35873096,2908.9,2908.8,0.01124919]
[1645193306967,0.85873096,2908.9,2908.8,0.01124919]
[1645193307564,0.85873096,2908.9,2908.8,0.07171892]
[1645193310022,4.35873096,2908.9,2908.8,0.07171892]
[1645193311624,0.85873096,2908.9,2908.8,0.07171892]
[1645193312024,0.85873096,2908.9,2908.8,0.01124919]
[1645193312520,4.35873096,2908.9,2908.8,0.01124919]
[1645193312923,0.85873096,2908.9,2908.8,0.01124919]
[1645193313158,0.80873096,2908.9,2908.8,0.01124919]
[1645193316769,4.30873096,2908.9,2908.8,0.01124919]
[1645193317213,0.80873096,2908.9,2908.8,0.01124919]
[1645193318016,4.30873096,2908.9,2908.8,0.01124919]
[1645193319114,0.80873096,2908.9,2908.8,0.01124919]
[1645193319315,4.30873096,2908.9,2908.8,0.01124919]
[1645193320516,0.80873096,2908.9,2908.8,0.01124919]
[1645193320768,11.02959075,2908.9,2908.8,0.01124919]
[1645193320967,12.44299075,2908.9,2908.8,0.01124919]
[1645193321174,1.7205,2908.7,2907.7,0.00661147]
[1645193321368,4.53217,2908.6,2907.7,0.00661147]
[1645193321568,1.42085979,2907.8,2907.7,0.00661147]
[1645193321765,1.42085979,2907.8,2907.7,0.00592682]
[1645193321973,2.29517862,2907.8,2907.7,0.00592682]
[1645193322974,2.29517862,2907.8,2907.7,0.00767421]
[1645193323172,2.29517862,2907.8,2907.7,0.00349478]
[1645193324072,2.29517862,2907.8,2907.7,0.00537752]
[1645193325314,2.29517862,2907.8,2907.7,0.00726026]
[1645193327519,2.29517862,2907.8,2907.7,0.07632534]
[1645193328357,2.29517862,2907.8,2907.7,0.06906508]
[1645193328758,2.29517862,2907.8,2906.9,1.35623]
[1645193328759,5.79517862,2907.8,2906.9,0.86023]
[1645193328975,5.79517862,2907.8,2907.6,0.00188253]
[1645193328976,1.72071,2907.7,2907.6,0.00188253]
[1645193329157,3.14156979,2907.7,2907.6,0.00188253]
[1645193329960,3.44156979,2907.7,2907.6,0.00188253]
[1645193330164,7.11346979,2907.7,2907.6,0.00188253]
[1645193330463,7.11346979,2907.7,2906.1,1.72055]
[1645193330464,6.5,2907.6,2906.1,1.72055]
[1645193330660,3.5,2907.5,2906.2,1.46391873]
[1645193330861,3.5,2907.5,2906.4,0.86038]
[1645193330862,1.42085979,2906.8,2906.4,0.86038]
[1645193331062,0.86037,2906.9,2906.8,0.14064164]
[1645193331260,1.72074,2907.2,2906.8,0.14064164]
[1645193331467,0.1719,2907.6,2906.8,0.14064164]
[1645193332316,1.72071,2907.5,2907.1,0.02291821]
[1645193332519,1.13414873,2907.2,2907.1,0.02291821]
[1645193335766,4.53212,2907.6,2907.1,0.02291821]
[1645193336568,1.03212,2907.6,2907.1,0.02291821]
[1645193336772,1.17009589,2907.5,2907.1,0.02291821]
[1645193337469,1.17009589,2907.5,2907.1,0.03084389]
[1645193338569,2.89077589,2907.5,2907.2,0.00183693]
[1645193341223,1.17009589,2907.5,2907.2,0.00183693]
[1645193342027,0.02895639,2907.4,2907.2,0.00183693]
[1645193343265,0.86031,2907.3,2907.1,0.00228014]
[1645193344867,0.86031,2907.3,2907.2,0.00210641]
[1645193345869,0.86031,2907.3,2907.2,0.00421282]
[1645193347314,0.86031,2907.3,2907.2,0.03764367]
[1645193348214,0.86031,2907.3,2907.2,0.03553726]
[1645193348813,1.17009589,2907.5,2907.2,0.03553726]
[1645193349616,0.86023,2907.6,2907.2,0.03782412]
[1645193350670,0.86023,2907.6,2907.2,0.03976551]
[1645193351476,0.76023,2907.6,2907.3,0.459]
[1645193352484,0.76023,2907.6,2907.4,0.01858024]
[1645193352879,0.00807552,2907.9,2907.4,0.01858024]
[1645193353275,0.00807552,2907.9,2907.5,1.46332755]
[1645193353276,0.00388174,2907.9,2907.5,1.46332755]
[1645193354078,0.00388174,2907.9,2907.5,1.76332755]
[1645193354277,0.00388174,2907.9,2907.6,1.46332755]
[1645193354522,0.00590105,2907.9,2907.6,1.46332755]
[1645193354723,1.72643105,2907.9,2907.4,0.01858024]
[1645193355028,1.72643105,2907.9,2907.5,1.76331308]
[1645193355222,1.72643105,2907.9,2907.6,1.46331308]
[1645193355421,1.72643105,2907.9,2907.4,0.01858024]
[1645193355623,1.72845037,2907.9,2907.5,1.46333107]
[1645193356225,0.00792037,2907.9,2907.6,1.46331014]
[1645193356424,0.00792037,2907.9,2907.4,0.01858024]
[1645193356622,0.00792037,2907.9,2907.5,1.46330554]
[1645193357424,0.00792037,2907.9,2907.7,0.01848881]
[1645193357628,1.72845037,2907.9,2907.7,0.01848881]
[1645193358268,1.72254932,2907.9,2907.7,0.01848881]
[1645193358865,0.00201932,2907.9,2907.7,0.01848881]
[1645193360366,0.00387543,2907.9,2907.7,0.01848881]
[1645193361765,0.00573156,2907.9,2907.7,0.01848881]
[1645193362211,0.00573156,2907.9,2907.7,0.01902584]
[1645193362910,0.0075877,2907.9,2907.7,0.01902584]
[1645193363110,0.00556838,2907.9,2907.7,0.01902584]
[1645193364312,0.00462917,2908.3,2907.8,2.81925328]
[1645193364518,7.82817006,2909.2,2907.9,1.46327328]
[1645193364519,0.0257661,2908.6,2907.9,1.46327328]
[1645193364717,0.02113693,2908.6,2908.0,0.496]
[1645193364914,0.02113693,2908.6,2908.1,1.46327328]
[1645193365111,0.02113693,2908.6,2908.2,0.496]
[1645193365318,0.02113693,2908.6,2908.3,1.46299354]
[1645193365513,3.693e-05,2908.6,2908.4,0.496]
[1645193365771,3.693e-05,2908.6,2908.5,1.46299354]
[1645193365971,3.693e-05,2908.6,2908.5,1.95899354]
[1645193366170,3.693e-05,2908.6,2908.5,0.796]
[1645193366370,0.00632888,2908.6,2908.5,2.25897639]
[1645193366770,0.00632888,2908.6,2908.5,2.55897639]
[1645193367171,0.00632888,2908.6,2908.5,1.096]
[1645193367576,0.00632888,2908.6,2908.5,1.95895021]
[1645193367775,0.00632888,2908.6,2908.4,1.46295021]
[1645193367978,0.00632888,2908.6,2908.0,3.3225]
[1645193368173,0.00629195,2908.6,2908.1,2.3230655]
[1645193368374,0.00629195,2908.6,2908.2,1.4631055]
[1645193368777,0.00629195,2908.6,2908.2,0.3]
[1645193368974,0.01249574,2908.6,2908.2,0.3]
[1645193369173,0.01249574,2908.6,2908.1,0.8599]
[1645193369412,0.01249574,2908.6,2908.1,1.7197594]
[1645193369816,0.01249574,2908.6,2908.2,0.3]
[1645193370119,0.01869963,2908.6,2908.2,0.3]
[1645193370415,0.01869963,2908.6,2908.2,1.15988]
[1645193371217,0.02490352,2908.6,2908.3,0.85983]
[1645193371417,0.02490352,2908.6,2908.3,3.4390729]
[1645193371616,0.02490352,2908.6,2908.3,3.7390729]
[1645193371816,0.02490352,2908.6,2908.4,1.15967]
[1645193372016,0.02820224,2908.5,2908.4,1.15967]
[1645193372216,0.02820224,2908.5,2908.4,2.87911]
[1645193372418,0.02820224,2908.5,2908.4,2.01944]
[1645193373018,0.02820224,2908.5,2908.4,0.3]
[1645193373269,0.03912173,2908.6,2908.4,0.3]
[1645193373270,0.00620389,2908.6,2908.4,0.3]
[1645193373664,0.0137125,2908.6,2908.4,0.3]
[1645193374265,0.0137125,2908.6,2908.2,2.01947]
[1645193374467,0.0137125,2908.6,2908.4,0.85987]
[1645193374668,0.0137125,2908.6,2908.4,1.15987]
[1645193375369,0.0137125,2908.6,2908.5,0.8598]
[1645193376169,0.0137125,2908.6,2908.4,1.15987]
[1645193377210,0.0137125,2908.6,2908.5,0.02963621]
[1645193378112,0.00462917,2909.1,2908.5,0.02963621]
[1645193378315,0.00462917,2909.2,2908.6,0.8598]
[1645193379111,3.50462917,2909.3,2908.8,0.3]
[1645193379516,3.50462917,2909.3,2908.8,1.15974]
[1645193379715,0.00462917,2909.3,2908.5,2.04912621]
[1645193379917,0.00177441,2908.7,2908.5,2.04912621]
[1645193380115,0.00177441,2908.7,2908.6,0.8597237]
[1645193380965,0.00177441,2908.7,2908.5,2.04912621]
[1645193380966,0.00354873,2908.7,2908.5,2.04912621]
[1645193381961,0.00354873,2908.7,2908.5,0.32963621]
[1645193382166,0.00532305,2908.7,2908.5,0.02963621]
[1645193382362,0.00532305,2908.7,2908.4,1.16151672]
[1645193382563,0.00532305,2908.7,2908.5,0.85979]
[1645193382764,0.86447917,2909.1,2909.0,0.45367695]
[1645193382964,1.02625697,2909.2,2909.0,0.45367695]
[1645193384267,2.74602697,2909.2,2909.0,0.45367695]
[1645193384915,3.5,2909.1,2909.0,0.45367695]
[1645193385124,3.5,2909.1,2908.3,0.00640714]
[1645193385125,8.5,2909.1,2908.3,0.00640714]
[1645193385320,7.17242917,2909.0,2908.3,0.00640714]
[1645193385517,3.5,2908.9,2908.3,0.00640714]
[1645193385717,0.00462917,2908.8,2908.3,0.00640714]
[1645193386324,0.98969031,2908.7,2908.3,0.00640714]
[1645193386517,3.5,2908.6,2908.3,0.00640714]
[1645193387220,3.6719,2908.6,2908.4,0.00146168]
[1645193387620,0.86007,2908.5,2908.4,0.00146168]
[1645193387819,4.36007,2908.5,2908.4,0.00146168]
[1645193388465,4.36007,2908.5,2908.4,0.00357621]
[1645193388666,11.79822,2908.5,2908.4,0.00357621]
[1645193389866,6.79822,2908.5,2908.4,0.00357621]
[1645193391915,7.30462375,2908.5,2908.4,0.00357621]
[1645193392114,7.30462375,2908.5,2908.3,0.00342377]
[1645193392115,12.30462375,2908.5,2908.3,0.00342377]
[1645193392315,11.1719,2908.4,2908.3,2.377e-05]
[1645193392723,0.0008,2908.2,2906.8,2.48204656]
[1645193392923,6.31013844,2907.9,2906.8,0.14064164]
[1645193393116,0.6679,2907.8,2906.8,0.14064164]
[1645193393416,5.0,2907.5,2906.8,0.14064164]
[1645193393615,5.0,2907.6,2906.8,0.14064164]
[1645193393817,0.86059,2907.3,2906.8,0.14064164]
[1645193394022,1.72118,2907.3,2906.8,0.14064164]
[1645193394624,1.67118,2907.3,2906.8,0.14064164]
[1645193394829,0.94189475,2906.9,2906.8,0.14064164]
[1645193396671,0.86055,2907.0,2906.8,0.14064164]
[1645193397869,1.07316893,2906.9,2906.8,0.14064164]
[1645193399524,4.57316893,2906.9,2906.3,0.00848435]
[1645193399723,4.57316893,2906.9,2906.0,0.29820428]
[1645193399724,5.0,2906.4,2905.1,0.86078]
[1645193399924,5.0,2906.0,2904.6,1.5568]
[1645193400124,5.0,2906.0,2904.7,1.4644204]
[1645193400125,3.6719,2905.9,2904.7,1.4644204]
[1645193400320,0.496,2905.8,2904.7,1.4644204]
[1645193400520,0.86116,2905.6,2904.4,1.4644204]
[1645193400722,0.86116,2905.6,2904.5,1.46441646]
[1645193400723,0.496,2905.6,2904.5,1.46441646]
[1645193400920,0.05624412,2905.8,2904.8,7.3]
[1645193401121,0.05624412,2905.8,2904.9,1.46441646]
[1645193401421,0.05624412,2905.8,2904.8,7.3]
[1645193401834,1.82937844,2905.7,2904.8,7.3]
[1645193402027,5.0,2905.1,2904.0,2.34311876]
[1645193402229,3.6721,2905.0,2904.1,1.46474272]
[1645193402421,1.1721,2905.0,2904.1,1.46474272]
[1645193402825,1.1721,2905.0,2903.6,0.00442335]
[1645193402826,1.00457275,2904.7,2903.7,0.64235048]
[1645193403022,0.86127,2904.9,2903.7,0.64235048]
[1645193403473,0.86127,2904.9,2903.6,0.00442335]
[1645193403674,0.1721,2904.8,2903.6,0.00442335]
[1645193403972,1.91677636,2904.9,2903.6,0.00442335]
[1645193404380,0.86122,2904.6,2903.9,0.86114]
[1645193404577,0.86122,2904.6,2903.6,0.00442335]
[1645193406077,0.86122,2904.6,2903.6,0.30442335]
[1645193406481,0.86122,2904.6,2903.6,0.00442335]
[1645193406946,0.86129,2905.0,2903.6,0.00442335]
[1645193406947,2.58355,2905.3,2903.7,0.496]